Cogmind - Beta 16.1 @@@ ROGUE MODE // 2026.06.18 @ 18:41:47 Player: Lolterzard Result: Destroyed by D-53 Grenadier with Mini Grenade Launcher Performance ------------- Evolutions (0) 0 Regions Visited (2) 400 Robots Destroyed (37) 185 Value Destroyed (654) 654 Prototype IDs (1) 20 Alien Tech Used (0) 0 Bonus (0) 0 TOTAL SCORE: 1259 Bonus ------- None Cogmind --------- Core Integrity 0/250 Matter 273/300 Energy 100/100 System Corruption 0% Temperature Cool (0) Movement Treading (480) Ox4 Location -10/Mines Parts ------- > --- POWER (1) -------- (None) > --- PROPULSION (2) --- Light Treads > --- UTILITY (2) ------ Huge Storage Unit > --- WEAPON (2) ------- Rocket Launcher Rocket Launcher > --- INVENTORY (25) --- Ion Engine Ion Engine Heavy Ion Engine Light Treads Light Treads Light Treads Improved Hover Unit Improved Hover Unit Improved Hover Unit Improved Hover Unit Heat Sink Shield Generator Shield Generator Shield Generator Shotgun Shotgun Shotgun Shotgun Light Cannon Grenade Launcher Grenade Launcher Peak State ------------ > --- POWER ------------ Heavy Ion Engine > --- PROPULSION ------- Light Treads Light Treads > --- UTILITY ---------- Huge Storage Unit Shield Generator > --- WEAPON ----------- Shotgun Shotgun > --- INVENTORY -------- Ion Engine Light Ion Engine Heavy Ion Engine Light Treads Light Treads Light Treads Improved Hover Unit Improved Hover Unit Improved Hover Unit Improved Hover Unit Shield Generator Shield Generator Shield Generator Shotgun Shotgun Light Cannon Grenade Launcher Grenade Launcher Rocket Launcher [Rating: 15] Favorites ----------- Power Heavy Ion Engine Engine Heavy Ion Engine Propulsion Light Treads Treads Light Treads Utility Huge Storage Unit Device Shield Generator Storage Huge Storage Unit Weapon Shotgun Ballistic Gun Shotgun Launcher Rocket Launcher Build | -11 -10 -10 ------- Run | Yrd Mat Min Slots Evolved . | . . . Power . | . . . Propulsion . | . . . Utility . | . . . Weapon . | . . . Parts Attached 17 | 6 8 3 Power 3 | 1 2 . Engine 3 | 1 2 . Core . | . . . Reactor . | . . . Propulsion 4 | 2 2 . Treads 4 | 2 2 . Leg . | . . . Wheel . | . . . Hover . | . . . Flight . | . . . Utility 4 | 1 3 . Device 1 | . 1 . Storage 3 | 1 2 . Processor . | . . . Hackware . | . . . Protection . | . . . Artifact . | . . . Weapon 6 | 2 1 3 Energy Gun . | . . . Energy Cannon . | . . . Ballistic Gun 4 | 2 1 1 Ballistic Cannon . | . . . Launcher 2 | . . 2 Special Weapon . | . . . Impact Weapon . | . . . Slashing Weapon . | . . . Piercing Weapon . | . . . Special Melee Weapon . | . . . Unidentified Prototypes 1 | . 1 . Parts Lost 4 | . . 4 Power 1 | . . 1 Propulsion 1 | . . 1 Utility 1 | . . 1 Weapon 1 | . . 1 Highest Loss Streak 3 | . . 3 To Critical Strikes . | . . . Average Backups 13 | 3 11 19 Power 2 | . 1 3 Propulsion 4 | 1 4 7 Utility 1 | . . 3 Weapon 5 | . 4 6 Tool/Special . | . . . Unused Backups 23 | . 4 19 Power 4 | . . 4 Propulsion 9 | . 3 6 Utility 4 | . . 4 Weapon 6 | . 1 5 Tool/Special . | . . . Average Slot Usage (%) 96 | . 95 99 Engine 14 | . 14 14 Treads 27 | . 28 27 Device 7 | . 4 14 Storage 17 | . 19 14 Ballistic Gun 27 | . 27 27 Peak Build Rating 15 | 6 14 15 Average Rating 11 | 4 10 14 On Entrance 6 | . 6 14 Avg Prop Armor Cover (%) 16 | 19 10 . Naked Turns . | . . . Heaviest Build 98 | 11 95 98 Greatest Support 40 | 40 40 40 Greatest Overweight (x) 4 | 3 2 4 Average Overweight (x) . | 1 . 2 Largest Inventory Capacity 25 | 8 25 25 Average Capacity 18 | 7 16 25 Most Carried 22 | 5 20 22 Average Carried 13 | 3 11 19 Final Capacity 25 | 8 25 25 Final Carried 21 | 4 20 21 Class Distribution -------------------- 100% | Mutant Dominant Class ---------------- Mutant | -10/Materials Mutant | -10/Mines Resources | -11 -10 -10 ----------- Run | Yrd Mat Min Matter Collected 1001 | 223 601 177 Remotely . | . . . Salvage Created 1042 | 104 637 301 Parts 65 | 6 31 28 Haulers Intercepted 2 | . 2 . Recyclers Shooed 1 | . . 1 Parts Field Recycled . | . . . Retrieved Matter . | . . . Parts Self-Destructed . | . . . Prevented . | . . . Parts Restored . | . . . Kills | -11 -10 -10 ------- Run | Yrd Mat Min Combat Hostiles Destroyed 25 | . 14 11 Guns 25 | . 14 11 Classes Destroyed 8 | 3 4 1 Worker 3 | 1 2 . Tunneler 2 | 1 . 1 Hauler 2 | . 2 . Recycler 3 | 1 1 1 Watcher 3 | . 3 . Swarmer 12 | . 6 6 Grunt 12 | . 8 4 Assembled 1 | . . 1 Best Kill Streak 5 | 3 5 4 Combat Bots Only 4 | . 4 3 Max Kills in Single Turn 2 | 1 2 2 Gunslinging 1 | . 1 . Exploded . | . . . Melee . | . . . Uniques/NPCs Destroyed . | . . . Combat | -11 -10 -10 -------- Run | Yrd Mat Min Hostile Shots Fired 131 | . 73 58 Missed 34 | . 21 13 Hits 97 | . 52 45 Projectile 97 | . 52 45 AOE 13 | . . 13 Critical Strikes 2 | . 2 . Damage Taken 1223 | . 560 663 Core 265 | . 108 157 Absorbed by Shields 160 | . . 160 Core Remaining (%) 100 | 100 . . Volleys Fired 102 | 10 70 22 Largest 2 | 2 2 2 Hottest 66 | 40 43 66 Shots Fired 202 | 20 139 43 Gun 200 | 20 139 41 Cannon . | . . . Launcher 2 | . . 2 Special . | . . . Kinetic 200 | 20 139 41 Thermal . | . . . Explosive 2 | . . 2 Electromagnetic . | . . . Robot Hit Streak 13 | 3 7 13 Robot Miss Streak 6 | 3 6 4 Penetration Max . | . . . Secondary Targets 3 | . 2 1 Max Gunslinging Chain 1 | . 1 1 Shots Hit Robots 128 | 9 89 30 Core Hits 68 | 5 39 24 Critical Kills 1 | . 1 . Critical Parts Destroyed 1 | . 1 . Critical Strikes 2 | . 2 . Destroy 2 | . 2 . Melee Attacks . | . . . Impact . | . . . Slashing . | . . . Piercing . | . . . Sneak Attacks . | . . . Combat Hostiles . | . . . Follow-up Attacks . | . . . Damage Inflicted 1853 | 102 1254 497 Guns 1759 | 102 1230 427 Cannons . | . . . Explosions 48 | . . 48 Melee . | . . . Ramming 46 | . 24 22 Kinetic 1759 | 102 1230 427 Thermal . | . . . Explosive 48 | . . 48 Electromagnetic . | . . . Impact . | . . . Slashing . | . . . Piercing . | . . . Highest Corruption . | . . . Average Corruption . | . . . Corruption Purged . | . . . Corruption Blocked . | . . . Overload Shots . | . . . Overflow Damage . | . . . Projectiles . | . . . Explosions . | . . . Melee . | . . . Knockbacks . | . . . Impact . | . . . Kinetic . | . . . Secondary . | . . . Self-Inflicted Damage . | . . . Shots . | . . . Rammed 5 | . 4 1 Targets Rammed 6 | . 4 2 Kicked . | . . . Crushed 1 | . . 1 Highest Temperature 27 | . 27 9 Average Temperature 6 | . 8 4 Received Heat Transfer 349 | . 255 94 Siege Activations . | . . . Martial Activations . | . . . Shielding Activations . | . . . Robots Disrupted . | . . . Combat Hostiles . | . . . Robots Corrupted . | . . . Combat Hostiles . | . . . Parts Fried . | . . . Impact Corruptions . | . . . Robots Melted . | . . . Combat Hostiles . | . . . Parts Melted . | . . . Heat Transferred . | . . . Parts Sabotaged . | . . . Parts Stolen . | . . . Parts Stripped . | . . . Power Chain Reactions . | . . . Alert | -11 -10 -10 ------- Run | Yrd Mat Min Maximum Alert Level . | . . . Low Security (%) 100 | 100 100 100 Level 1 . | . . . Level 2 . | . . . Level 3 . | . . . Level 4 . | . . . Level 5 . | . . . High Security . | . . . Max Security . | . . . Peak Influence 155 | 10 155 75 Initial . | . . . Average 31 | . 37 21 Influence Increases 725 | 15 459 251 Destroy 0b10 Robot/C 480 | . 280 200 Destroy 0b10 Robot/NC 65 | 15 40 10 Destroy Leader 110 | . 70 40 Successful Hack 9 | . 9 . Destroy Structure 1 | . . 1 Lose Combat Pursuer 60 | . 60 . Influence Decreases 725 | 15 459 251 Time Decay 697 | 15 459 223 Lost Part 28 | . . 28 Squads Dispatched 3 | . 3 . Investigation 1 | . 1 . Extermination . | . . . Reinforcement 2 | . 2 . Assault . | . . . Garrison . | . . . Intercept . | . . . Searches Triggered . | . . . Construction Impeded . | . . . Haulers Reinforced . | . . . Active Scanning Responses . | . . . Cargo Convoy Interrupts . | . . . Stealth | -11 -10 -10 --------- Run | Yrd Mat Min Distress Signals 3 | . 2 1 Communications Jammed . | . . . Distress Signals . | . . . Times Spotted 37 | . 24 13 Peak Tracking Total 7 | . 7 3 Tactical Retreats 2 | . 2 . Traps | -11 -10 -10 ------- Run | Yrd Mat Min Traps Triggered . | . . . Indirectly . | . . . Trap Hack Attempts . | . . . Triggered . | . . . Disarmed . | . . . Reprogrammed . | . . . Reused . | . . . Traps Extracted . | . . . Installed . | . . . Triggered . | . . . Machines | -11 -10 -10 ---------- Run | Yrd Mat Min Machines Disabled . | . . . Max in Single Turn . | . . . Machines Repaired . | . . . Machines Dismantled . | . . . Machines Sabotaged . | . . . Overloaded Fab Kills . | . . . Hacking | -11 -10 -10 --------- Run | Yrd Mat Min Machines Accessed 4 | . 4 . Terminals 4 | . 4 . Fabricators . | . . . Repair Stations . | . . . Recycling Units . | . . . Scanalyzers . | . . . Garrison Access . | . . . Total Hacks 8 | . 8 . Successful 3 | . 3 . Failed 5 | . 5 . Catastrophic 1 | . 1 . Database Lockouts . | . . . Manual . | . . . Terminals 8 | . 8 . Fabricators . | . . . Repair Stations . | . . . Recycling Units . | . . . Scanalyzers . | . . . Garrison Access . | . . . Terminal Hacks 3 | . 3 . Alert Level 1 | . 1 . Locate Traps 1 | . 1 . Hauler Manifests 1 | . 1 . Fabricator Hacks . | . . . Repair Station Hacks . | . . . Recycling Unit Hacks . | . . . Scanalyzer . | . . . Garrison Access Hacks . | . . . Unauthorized Hacks . | . . . Terminals . | . . . Fabricators . | . . . Repair Stations . | . . . Recycling Units . | . . . Scanalyzers . | . . . Garrison Access . | . . . Data Cores Recovered . | . . . Used . | . . . Hacking Detections 2 | . 2 . Full Trace Events 1 | . 1 . Feedback Events . | . . . Feedback Blocked . | . . . Robot Schematics Acquired . | . . . Robots Built . | . . . Authchips . | . . . Time . | . . . Total Robot Build Rating . | . . . Part Schematics Acquired . | . . . Parts Built . | . . . Authchips . | . . . Time . | . . . Total Part Build Rating . | . . . Part Studies Acquired . | . . . Parts Repaired . | . . . Time . | . . . Parts Recycled . | . . . Recycled Matter . | . . . Retrieved Matter . | . . . Retrieved Components . | . . . Parts Scanalyzed . | . . . Part Schematics Acquired . | . . . Parts Damaged . | . . . Bothacking | -11 -10 -10 ------------ Run | Yrd Mat Min Used RIF Installer . | . . . Robots Hacked . | . . . Non-combat . | . . . Combat . | . . . Robot Hacks Applied . | . . . Relay Couplers Released . | . . . Fabnet Peak Effective % . | . . . Robots Rewired . | . . . Allies Hacked . | . . . Hacks Repelled . | . . . Allies | -11 -10 -10 -------- Run | Yrd Mat Min Total Allies . | . . . Largest Group . | . . . Highest-Rated Group . | . . . Highest-Rated Ally . | . . . Total Orders . | . . . Ally Attacks . | . . . Total Damage . | . . . Kills . | . . . Allies Corrupted . | . . . Allies Melted . | . . . Intel | -11 -10 -10 ------- Run | Yrd Mat Min Active Infowar (turns) . | . . . Robot Analysis Total . | . . . Derelict Logs Recovered 2 | . . 2 Drone Launches . | . . . Drone Recoveries . | . . . Exploration | -11 -10 -10 ------------- Run | Yrd Mat Min Turns Passed 2830 | 121 1899 810 Spaces Moved 1031 | 58 747 226 Core 44 | 44 . . Treads 987 | 14 747 226 Legs . | . . . Wheels . | . . . Hover . | . . . Flight . | . . . Fastest Speed 50 | 50 160 320 Average Speed 232 | 138 212 320 Slowest Speed 480 | 200 320 480 Overloaded Moves . | . . . Propulsion Burnouts . | . . . Robots Hopped . | . . . Potential Cave-ins . | . . . Cave-ins Triggered . | . . . Exploration Rate (%) 41 | 3 73 47 Regions Visited 2 Branch Regions 1 Pre-discovered Areas 1 | . . 1 Known Exits Taken . | . . . Unknown Exits Taken 2 | 1 1 . Scrap Searched 1 | . . 1 Spaces Dug . | . . . Terrain Destroyed 5 | . . 5 Melee . | . . . Projectile . | . . . AOE 5 | . . 5 Terrain Rammed . | . . . Walls Destroyed . | . . . Machines Disabled . | . . . Actions | -11 -10 -10 --------- Run | Yrd Mat Min Total 1264 | 79 921 264 Wait 65 | . 58 7 Move 1029 | 57 746 226 Hop . | . . . Pick Up 32 | 6 23 3 Fast Attach 8 | 4 4 . Attach 4 | 2 1 1 Detach . | . . . Swap 5 | . 3 2 Drop 13 | . 12 1 Fire 102 | 10 70 22 Melee . | . . . Ram . | . . . Kick . | . . . Crush 6 | . 4 2 Escape Stasis . | . . . Rewire . | . . . Trap . | . . . Miscellaneous . | . . . Route ------- -11/Scrapyard -10/Materials (discovered 3 exits: [*Mat x2] / [*Min]) -10/Mines (discovered 2 exits: [*Mat x2]) History --------- Turn | Location | Event 7 | -11/Scrapyard | Discovered new exit (range 13) 122 | -11/Scrapyard | Entered Materials 300 | -10/Materials | Build established: Mutant 472 | -10/Materials | Discovered new exit (range 10) 863 | -10/Materials | Discovered new exit (range 13) 1347 | -10/Materials | Discovered new exit (range 7) 2021 | -10/Materials | Entered Mines 2279 | -10/Mines | Core integrity fell below 50% 2425 | -10/Mines | Discovered new exit (range 12) 2493 | -10/Mines | Received a Rocket Launcher from a helpful Derelict 2685 | -10/Mines | Discovered new exit (range 16) 2730 | -10/Mines | Assembled infested the area 2826 | -10/Mines | Core integrity fell below 20% 2831 | -10/Mines | Destroyed by D-53 Grenadier with Mini Grenade Launcher Last Messages --------------- 02767_ R-06 Scavenger collects Sml. Storage Unit. 02768_ K-01 Serf collects debris. 02770_ R-06 Scavenger collects Com. Wheel. 02773_ K-01 Serf collects debris. 02773_ R-06 Scavenger collects Lgt. Ion Engine. 02777_ K-01 Serf collects debris. 02785_ as-86470 destroyed. 02792_ Acquired 8 matter. 02808_ Searching scrap... 02808_ Found Mining Laser. 02808_ Found 47 Matter. 02809_ Acquired 8 matter. 02814_ Acquired derelict log, extracted data. World map updated: -9/Materials. 02821_ The unstable cave ceiling collapses. 02826_ Lgt. Treads destroyed. 02828_ The unstable cave ceiling collapses. 02830_ Shield Generator destroyed. 02830_ Hvy. Ion Engine destroyed. 02831_ The unstable cave ceiling collapses. Map ----- +----------------------------------------------------+ | #????????????????????????????????????????????? | | # ##?????##?????????????????????????????????????? | | ##/#?????? #?????????????????????????????????????? | | ?# #????? ##????????????????????????????????????? | | ## #????? #####????????????????????????????????? | | ## #????? ##???????????????????????????????? | | ##=###### ## ?????????????????????????? | | ==*!% #?????????????????????????? | | * [ #??????????????????????????? | | ###*#### # #????????????????????????????? | | ### #?? ##?????? ?????????????????????? | | ## #?? #####?????? ???????????????????? | | ## #?# ##?????????? ##?????????????????? | | ### #?######???????????## #?????????????????? | | #?# #?????????????????# #?????????????????? | | ??# #??????????#?????? # ##????????????????? | | ??#%#?????????? ????? ##???????????????? | | ??# #??????????" "????? #???????????????? | | ?## ##?????????" ""???? #???????????????? | | ## #?????????" ""???? d #???????????????? | | # ##????????? ???## d < #???????????????? | | #????????? ??## #???????????????? | | #?????????# ?## #????????????????? | | ## #?????????# ?# #????????????????? | | ### ##?????????# ?# ##???????????????? | | ??####??????????# ## @ ##??????????????? | | ????????????????# #????????????? | | ????????????????# r #???????????? | | ????????????????### # #???????????? | | ??????????????????# ## ## ##???????????? | | ??????????????????# ### ##??#####????????????? | | ??????????????????# #?## ###????????????????????? | | ??????????????????# ##?# ##????????????????????? | | ?????????????????## ## ##???????????????????? | | ?????????????????# < ##??????????????????? | | ?????????????????# ##?????????????????? | | ?????????????????## !%[ #?????????????????? | | ??????????????????##* ##?????????????????? | | ??????????????????##%% ####??????????????????? | | ????????????????### * ##?????????????????????? | | ###????????????## ##?????????????????????? | | #????????????# ###???????????????????? | | # #???????????## #??????????????????? | | # #???????????# #?????????????????? | | # ###?????????# #### #?????????????????? | | ########??# ##???## ## ##?????????????????? | | #?## #??????###?###??????????????????? | | ### ##?###??????????????????????????? | | ### ## ##?????????????????????????? | | # ####### #?????????????????????????? | +----------------------------------------------------+ Best States ------------- Heat Dissipation 25 Energy Generation 14 Energy Capacity 280 Matter Stores 300 Matter Capacity 300 Sight Range 16 Terrain Scan Density 10 Evasion (%) 50 Recoil Reduction 2 Item Schematics ----------------- None Robot Schematics ------------------ None Fabricated ------------ Nothing Repaired ---------- Nothing Studied --------- None Alien Tech Used ----------------- None Achievements -------------- None Challenges ------------ None Game ------ Seed HybridAlphaTreads Manual? 0 Play Time 00:11:35 Cumulative 40.4 hours Start 2026.06.18 @ 18:32:22 End 2026.06.18 @ 18:41:47 Sessions 1 Manual Loads 0 Difficulty Rogue Special Mode None Game No. 74 Rogue 74 Adventurer 0 Explorer 0 Win Type - Total 0 Types 0/0/0/0/0/0/0/0/0/0 Lore% 22 Gallery% 22 Achievement% 20 Wizard Run 0 Options --------- Layout 0 ASCII 0 Keyboard 0 Movement Mouse Keybinds 0 Fullscreen 2 Font 24/Smallcaps Map View 76x50 Zoom Use 0% Tactical HUD 1 Map Filters NONE Filters NONE Steam 1 RUN: 66f75faf-5042-4ac1-87fa-3fa9e72ad1bb